Workbook

Sheet 損益表
B1: 十二個月 | P1: 公司名稱
B2: 損益預測 | AB2: 會計年度開始時間： | AC2: 一月 | AD2: 2012
D4: =UPPER(TEXT(DATE(FYStartYear,FYMonthNo-11,1),"[$-404]mmm-yy")) -> 一月-12 | E4: =UPPER(TEXT(DATE(FYStartYear,FYMonthNo-10,1),"[$-404]mmm-yy")) -> 二月-12 | F4: =UPPER(TEXT(DATE(FYStartYear,FYMonthNo-9,1),"[$-404]mmm-yy")) -> 三月-12 | G4: =UPPER(TEXT(DATE(FYStartYear,FYMonthNo-8,1),"[$-404]mmm-yy")) -> 四月-12 | H4: =UPPER(TEXT(DATE(FYStartYear,FYMonthNo-7,1),"[$-404]mmm-yy")) -> 五月-12 | I4: =UPPER(TEXT(DATE(FYStartYear,FYMonthNo-6,1),"[$-404]mmm-yy")) -> 六月-12 | J4: =UPPER(TEXT(DATE(FYStartYear,FYMonthNo-5,1),"[$-404]mmm-yy")) -> 七月-12 | K4: =UPPER(TEXT(DATE(FYStartYear,FYMonthNo-4,1),"[$-404]mmm-yy")) -> 八月-12 | L4: =UPPER(TEXT(DATE(FYStartYear,FYMonthNo-3,1),"[$-404]mmm-yy")) -> 九月-12 | M4: =UPPER(TEXT(DATE(FYStartYear,FYMonthNo-2,1),"[$-404]mmm-yy")) -> 十月-12 | N4: =UPPER(TEXT(DATE(FYStartYear,FYMonthNo-1,1),"[$-404]mmm-yy")) -> 十一月-12 | O4: =UPPER(TEXT(DATE(FYStartYear,FYMonthNo,1),"[$-404]mmm-yy")) -> 十二月-12 | P4: 每年 | Q4: IND % | R4: =LEFT(D4,2)&" %" -> 一月 % | S4: 二月 % | T4: 三月 % | U4: 四月 % | V4: 五月 % | W4: 六月 % | X4: 七月 % | Y4: 八月 % | Z4: 九月 % | AA4: 十月 % | AB4: =LEFT(N4,3)&" %" -> 十一月 % | AC4: =LEFT(O4,3)&" %" -> 十二月 % | AD4: 年度 %
B6: 收入 (銷售) | C6: 趨勢 | D6: m1 | E6: m2 | F6: m3 | G6: m4 | H6: m5 | I6: m6 | J6: m7 | K6: m8 | L6: m9 | M6: m10 | N6: m11 | O6: m12 | P6: Yearly | Q6: Ind % | R6: % m1 | S6: % m2 | T6: % m3 | U6: % m4 | V6: % m5 | W6: % m6 | X6: % m7 | Y6: % m8 | Z6: % m9 | AA6: % m10 | AB6: % m11 | AC6: % m12 | AD6: % y
B7: 收入 1 | D7: NT$5,580 | E7: NT$3,240 | F7: NT$2,760 | G7: NT$3,660 | H7: NT$5,700 | I7: NT$2,130 | J7: NT$630 | K7: NT$1,110 | L7: NT$720 | M7: NT$5,340 | N7: NT$2,760 | O7: NT$2,910 | P7: =SUM(tblRevenue[[#This Row],[m1]:[m12]]) -> NT$36,540 | Q7: 12% | R7: =IFERROR(tblRevenue[[#This Row],[m1]]/tblRevenue[[#Totals],[m1]],"-") -> 30% | S7: =IFERROR(tblRevenue[[#This Row],[m2]]/tblRevenue[[#Totals],[m2]],"-") -> 15% | T7: =IFERROR(tblRevenue[[#This Row],[m3]]/tblRevenue[[#Totals],[m3]],"-") -> 11% | U7: =IFERROR(tblRevenue[[#This Row],[m4]]/tblRevenue[[#Totals],[m4]],"-") -> 20% | V7: =IFERROR(tblRevenue[[#This Row],[m5]]/tblRevenue[[#Totals],[m5]],"-") -> 23% | W7: =IFERROR(tblRevenue[[#This Row],[m6]]/tblRevenue[[#Totals],[m6]],"-") -> 12% | X7: =IFERROR(tblRevenue[[#This Row],[m7]]/tblRevenue[[#Totals],[m7]],"-") -> 4% | Y7: =IFERROR(tblRevenue[[#This Row],[m8]]/tblRevenue[[#Totals],[m8]],"-") -> 5% | Z7: =IFERROR(tblRevenue[[#This Row],[m9]]/tblRevenue[[#Totals],[m9]],"-") -> 3% | AA7: =IFERROR(tblRevenue[[#This Row],[m10]]/tblRevenue[[#Totals],[m10]],"-") -> 26% | AB7: =IFERROR(tblRevenue[[#This Row],[m11]]/tblRevenue[[#Totals],[m11]],"-") -> 12% | AC7: =IFERROR(tblRevenue[[#This Row],[m12]]/tblRevenue[[#Totals],[m12]],"-") -> 9% | AD7: =IFERROR(tblRevenue[[#This Row],[Yearly]]/tblRevenue[[#Totals],[Yearly]],"-") -> 14%
B8: 收入 2 | D8: NT$450 | E8: NT$480 | F8: NT$5,940 | G8: NT$1,320 | H8: NT$750 | I8: NT$2,040 | J8: NT$1,290 | K8: NT$3,570 | L8: NT$1,110 | M8: NT$3,540 | N8: NT$870 | O8: NT$5,130 | P8: =SUM(tblRevenue[[#This Row],[m1]:[m12]]) -> NT$26,490 | Q8: 18% | R8: =IFERROR(tblRevenue[[#This Row],[m1]]/tblRevenue[[#Totals],[m1]],"-") -> 2% | S8: =IFERROR(tblRevenue[[#This Row],[m2]]/tblRevenue[[#Totals],[m2]],"-") -> 2% | T8: =IFERROR(tblRevenue[[#This Row],[m3]]/tblRevenue[[#Totals],[m3]],"-") -> 24% | U8: =IFERROR(tblRevenue[[#This Row],[m4]]/tblRevenue[[#Totals],[m4]],"-") -> 7% | V8: =IFERROR(tblRevenue[[#This Row],[m5]]/tblRevenue[[#Totals],[m5]],"-") -> 3% | W8: =IFERROR(tblRevenue[[#This Row],[m6]]/tblRevenue[[#Totals],[m6]],"-") -> 12% | X8: =IFERROR(tblRevenue[[#This Row],[m7]]/tblRevenue[[#Totals],[m7]],"-") -> 7% | Y8: =IFERROR(tblRevenue[[#This Row],[m8]]/tblRevenue[[#Totals],[m8]],"-") -> 18% | Z8: =IFERROR(tblRevenue[[#This Row],[m9]]/tblRevenue[[#Totals],[m9]],"-") -> 5% | AA8: =IFERROR(tblRevenue[[#This Row],[m10]]/tblRevenue[[#Totals],[m10]],"-") -> 17% | AB8: =IFERROR(tblRevenue[[#This Row],[m11]]/tblRevenue[[#Totals],[m11]],"-") -> 4% | AC8: =IFERROR(tblRevenue[[#This Row],[m12]]/tblRevenue[[#Totals],[m12]],"-") -> 16% | AD8: =IFERROR(tblRevenue[[#This Row],[Yearly]]/tblRevenue[[#Totals],[Yearly]],"-") -> 10%
B9: 收入 3 | D9: NT$4,980 | E9: NT$5,550 | F9: NT$2,670 | G9: NT$5,100 | H9: NT$3,930 | I9: NT$2,100 | J9: NT$1,500 | K9: NT$4,470 | L9: NT$5,370 | M9: NT$3,120 | N9: NT$3,570 | O9: NT$5,610 | P9: =SUM(tblRevenue[[#This Row],[m1]:[m12]]) -> NT$47,970 | Q9: 19% | R9: =IFERROR(tblRevenue[[#This Row],[m1]]/tblRevenue[[#Totals],[m1]],"-") -> 27% | S9: =IFERROR(tblRevenue[[#This Row],[m2]]/tblRevenue[[#Totals],[m2]],"-") -> 25% | T9: =IFERROR(tblRevenue[[#This Row],[m3]]/tblRevenue[[#Totals],[m3]],"-") -> 11% | U9: =IFERROR(tblRevenue[[#This Row],[m4]]/tblRevenue[[#Totals],[m4]],"-") -> 28% | V9: =IFERROR(tblRevenue[[#This Row],[m5]]/tblRevenue[[#Totals],[m5]],"-") -> 16% | W9: =IFERROR(tblRevenue[[#This Row],[m6]]/tblRevenue[[#Totals],[m6]],"-") -> 12% | X9: =IFERROR(tblRevenue[[#This Row],[m7]]/tblRevenue[[#Totals],[m7]],"-") -> 8% | Y9: =IFERROR(tblRevenue[[#This Row],[m8]]/tblRevenue[[#Totals],[m8]],"-") -> 22% | Z9: =IFERROR(tblRevenue[[#This Row],[m9]]/tblRevenue[[#Totals],[m9]],"-") -> 24% | AA9: =IFERROR(tblRevenue[[#This Row],[m10]]/tblRevenue[[#Totals],[m10]],"-") -> 15% | AB9: =IFERROR(tblRevenue[[#This Row],[m11]]/tblRevenue[[#Totals],[m11]],"-") -> 16% | AC9: =IFERROR(tblRevenue[[#This Row],[m12]]/tblRevenue[[#Totals],[m12]],"-") -> 18% | AD9: =IFERROR(tblRevenue[[#This Row],[Yearly]]/tblRevenue[[#Totals],[Yearly]],"-") -> 18%
B10: 收入 4 | D10: NT$630 | E10: NT$3,390 | F10: NT$2,490 | G10: NT$510 | H10: NT$3,900 | I10: NT$780 | J10: NT$5,010 | K10: NT$3,060 | L10: NT$2,460 | M10: NT$990 | N10: NT$2,640 | O10: NT$5,790 | P10: =SUM(tblRevenue[[#This Row],[m1]:[m12]]) -> NT$31,650 | Q10: 11% | R10: =IFERROR(tblRevenue[[#This Row],[m1]]/tblRevenue[[#Totals],[m1]],"-") -> 3% | S10: =IFERROR(tblRevenue[[#This Row],[m2]]/tblRevenue[[#Totals],[m2]],"-") -> 15% | T10: =IFERROR(tblRevenue[[#This Row],[m3]]/tblRevenue[[#Totals],[m3]],"-") -> 10% | U10: =IFERROR(tblRevenue[[#This Row],[m4]]/tblRevenue[[#Totals],[m4]],"-") -> 3% | V10: =IFERROR(tblRevenue[[#This Row],[m5]]/tblRevenue[[#Totals],[m5]],"-") -> 16% | W10: =IFERROR(tblRevenue[[#This Row],[m6]]/tblRevenue[[#Totals],[m6]],"-") -> 4% | X10: =IFERROR(tblRevenue[[#This Row],[m7]]/tblRevenue[[#Totals],[m7]],"-") -> 28% | Y10: =IFERROR(tblRevenue[[#This Row],[m8]]/tblRevenue[[#Totals],[m8]],"-") -> 15% | Z10: =IFERROR(tblRevenue[[#This Row],[m9]]/tblRevenue[[#Totals],[m9]],"-") -> 11% | AA10: =IFERROR(tblRevenue[[#This Row],[m10]]/tblRevenue[[#Totals],[m10]],"-") -> 5% | AB10: =IFERROR(tblRevenue[[#This Row],[m11]]/tblRevenue[[#Totals],[m11]],"-") -> 12% | AC10: =IFERROR(tblRevenue[[#This Row],[m12]]/tblRevenue[[#Totals],[m12]],"-") -> 19% | AD10: =IFERROR(tblRevenue[[#This Row],[Yearly]]/tblRevenue[[#Totals],[Yearly]],"-") -> 12%
B11: 收入 5 | D11: NT$2,100 | E11: NT$4,800 | F11: NT$3,750 | G11: NT$2,520 | H11: NT$5,730 | I11: NT$2,910 | J11: NT$1,560 | K11: NT$1,350 | L11: NT$5,190 | M11: NT$4,080 | N11: NT$4,320 | O11: NT$5,010 | P11: =SUM(tblRevenue[[#This Row],[m1]:[m12]]) -> NT$43,320 | Q11: 20% | R11: =IFERROR(tblRevenue[[#This Row],[m1]]/tblRevenue[[#Totals],[m1]],"-") -> 11% | S11: =IFERROR(tblRevenue[[#This Row],[m2]]/tblRevenue[[#Totals],[m2]],"-") -> 22% | T11: =IFERROR(tblRevenue[[#This Row],[m3]]/tblRevenue[[#Totals],[m3]],"-") -> 15% | U11: =IFERROR(tblRevenue[[#This Row],[m4]]/tblRevenue[[#Totals],[m4]],"-") -> 14% | V11: =IFERROR(tblRevenue[[#This Row],[m5]]/tblRevenue[[#Totals],[m5]],"-") -> 24% | W11: =IFERROR(tblRevenue[[#This Row],[m6]]/tblRevenue[[#Totals],[m6]],"-") -> 17% | X11: =IFERROR(tblRevenue[[#This Row],[m7]]/tblRevenue[[#Totals],[m7]],"-") -> 9% | Y11: =IFERROR(tblRevenue[[#This Row],[m8]]/tblRevenue[[#Totals],[m8]],"-") -> 7% | Z11: =IFERROR(tblRevenue[[#This Row],[m9]]/tblRevenue[[#Totals],[m9]],"-") -> 23% | AA11: =IFERROR(tblRevenue[[#This Row],[m10]]/tblRevenue[[#Totals],[m10]],"-") -> 20% | AB11: =IFERROR(tblRevenue[[#This Row],[m11]]/tblRevenue[[#Totals],[m11]],"-") -> 19% | AC11: =IFERROR(tblRevenue[[#This Row],[m12]]/tblRevenue[[#Totals],[m12]],"-") -> 16% | AD11: =IFERROR(tblRevenue[[#This Row],[Yearly]]/tblRevenue[[#Totals],[Yearly]],"-") -> 17%
B12: 收入 6 | D12: NT$1,830 | E12: NT$2,970 | F12: NT$2,100 | G12: NT$4,860 | H12: NT$840 | I12: NT$4,890 | J12: NT$3,030 | K12: NT$3,090 | L12: NT$2,340 | M12: NT$990 | N12: NT$4,860 | O12: NT$4,770 | P12: =SUM(tblRevenue[[#This Row],[m1]:[m12]]) -> NT$36,570 | Q12: 10% | R12: =IFERROR(tblRevenue[[#This Row],[m1]]/tblRevenue[[#Totals],[m1]],"-") -> 10% | S12: =IFERROR(tblRevenue[[#This Row],[m2]]/tblRevenue[[#Totals],[m2]],"-") -> 13% | T12: =IFERROR(tblRevenue[[#This Row],[m3]]/tblRevenue[[#Totals],[m3]],"-") -> 9% | U12: =IFERROR(tblRevenue[[#This Row],[m4]]/tblRevenue[[#Totals],[m4]],"-") -> 27% | V12: =IFERROR(tblRevenue[[#This Row],[m5]]/tblRevenue[[#Totals],[m5]],"-") -> 3% | W12: =IFERROR(tblRevenue[[#This Row],[m6]]/tblRevenue[[#Totals],[m6]],"-") -> 28% | X12: =IFERROR(tblRevenue[[#This Row],[m7]]/tblRevenue[[#Totals],[m7]],"-") -> 17% | Y12: =IFERROR(tblRevenue[[#This Row],[m8]]/tblRevenue[[#Totals],[m8]],"-") -> 15% | Z12: =IFERROR(tblRevenue[[#This Row],[m9]]/tblRevenue[[#Totals],[m9]],"-") -> 10% | AA12: =IFERROR(tblRevenue[[#This Row],[m10]]/tblRevenue[[#Totals],[m10]],"-") -> 5% | AB12: =IFERROR(tblRevenue[[#This Row],[m11]]/tblRevenue[[#Totals],[m11]],"-") -> 22% | AC12: =IFERROR(tblRevenue[[#This Row],[m12]]/tblRevenue[[#Totals],[m12]],"-") -> 15% | AD12: =IFERROR(tblRevenue[[#This Row],[Yearly]]/tblRevenue[[#Totals],[Yearly]],"-") -> 14%
B13: 收入 7 | D13: NT$3,150 | E13: NT$1,650 | F13: NT$4,890 | G13: NT$360 | H13: NT$3,510 | I13: NT$2,490 | J13: NT$4,890 | K13: NT$3,600 | L13: NT$5,130 | M13: NT$2,370 | N13: NT$3,150 | O13: NT$2,070 | P13: =SUM(tblRevenue[[#This Row],[m1]:[m12]]) -> NT$37,260 | Q13: 10% | R13: =IFERROR(tblRevenue[[#This Row],[m1]]/tblRevenue[[#Totals],[m1]],"-") -> 17% | S13: =IFERROR(tblRevenue[[#This Row],[m2]]/tblRevenue[[#Totals],[m2]],"-") -> 7% | T13: =IFERROR(tblRevenue[[#This Row],[m3]]/tblRevenue[[#Totals],[m3]],"-") -> 20% | U13: =IFERROR(tblRevenue[[#This Row],[m4]]/tblRevenue[[#Totals],[m4]],"-") -> 2% | V13: =IFERROR(tblRevenue[[#This Row],[m5]]/tblRevenue[[#Totals],[m5]],"-") -> 14% | W13: =IFERROR(tblRevenue[[#This Row],[m6]]/tblRevenue[[#Totals],[m6]],"-") -> 14% | X13: =IFERROR(tblRevenue[[#This Row],[m7]]/tblRevenue[[#Totals],[m7]],"-") -> 27% | Y13: =IFERROR(tblRevenue[[#This Row],[m8]]/tblRevenue[[#Totals],[m8]],"-") -> 18% | Z13: =IFERROR(tblRevenue[[#This Row],[m9]]/tblRevenue[[#Totals],[m9]],"-") -> 23% | AA13: =IFERROR(tblRevenue[[#This Row],[m10]]/tblRevenue[[#Totals],[m10]],"-") -> 12% | AB13: =IFERROR(tblRevenue[[#This Row],[m11]]/tblRevenue[[#Totals],[m11]],"-") -> 14% | AC13: =IFERROR(tblRevenue[[#This Row],[m12]]/tblRevenue[[#Totals],[m12]],"-") -> 7% | AD13: =IFERROR(tblRevenue[[#This Row],[Yearly]]/tblRevenue[[#Totals],[Yearly]],"-") -> 14%
B14: 總銷售額 | D14: =SUBTOTAL(109,tblRevenue[m1]) -> NT$18,720 | E14: =SUBTOTAL(109,tblRevenue[m2]) -> NT$22,080 | F14: =SUBTOTAL(109,tblRevenue[m3]) -> NT$24,600 | G14: =SUBTOTAL(109,tblRevenue[m4]) -> NT$18,330 | H14: =SUBTOTAL(109,tblRevenue[m5]) -> NT$24,360 | I14: =SUBTOTAL(109,tblRevenue[m6]) -> NT$17,340 | J14: =SUBTOTAL(109,tblRevenue[m7]) -> NT$17,910 | K14: =SUBTOTAL(109,tblRevenue[m8]) -> NT$20,250 | L14: =SUBTOTAL(109,tblRevenue[m9]) -> NT$22,320 | M14: =SUBTOTAL(109,tblRevenue[m10]) -> NT$20,430 | N14: =SUBTOTAL(109,tblRevenue[m11]) -> NT$22,170 | O14: =SUBTOTAL(109,tblRevenue[m12]) -> NT$31,290 | P14: =SUBTOTAL(109,tblRevenue[Yearly]) -> NT$259,800 | Q14: =SUBTOTAL(109,tblRevenue[Ind %]) -> 100% | R14: =SUBTOTAL(109,tblRevenue[% m1]) -> 100% | S14: =SUBTOTAL(109,tblRevenue[% m2]) -> 100% | T14: =SUBTOTAL(109,tblRevenue[% m3]) -> 100% | U14: =SUBTOTAL(109,tblRevenue[% m4]) -> 100% | V14: =SUBTOTAL(109,tblRevenue[% m5]) -> 100% | W14: =SUBTOTAL(109,tblRevenue[% m6]) -> 100% | X14: =SUBTOTAL(109,tblRevenue[% m7]) -> 100% | Y14: =SUBTOTAL(109,tblRevenue[% m8]) -> 100% | Z14: =SUBTOTAL(109,tblRevenue[% m9]) -> 100% | AA14: =SUBTOTAL(109,tblRevenue[% m10]) -> 100% | AB14: =SUBTOTAL(109,tblRevenue[% m11]) -> 100% | AC14: =SUBTOTAL(109,tblRevenue[% m12]) -> 100% | AD14: =SUBTOTAL(109,tblRevenue[% y]) -> 100%
B16: 銷售成本 | C16: 趨勢 | D16: m1 | E16: m2 | F16: m3 | G16: m4 | H16: m5 | I16: m6 | J16: m7 | K16: m8 | L16: m9 | M16: m10 | N16: m11 | O16: m12 | P16: Yearly | Q16: Ind % | R16: % m1 | S16: % m2 | T16: % m3 | U16: % m4 | V16: % m5 | W16: % m6 | X16: % m7 | Y16: % m8 | Z16: % m9 | AA16: % m10 | AB16: % m11 | AC16: % m12 | AD16: % y
B17: 成本 1 | D17: NT$1,830 | E17: NT$2,340 | F17: NT$1,950 | G17: NT$870 | H17: NT$3,750 | I17: NT$1,470 | J17: NT$420 | K17: NT$780 | L17: NT$420 | M17: NT$3,870 | N17: NT$1,800 | O17: NT$1,950 | P17: =SUM(tblCostofSales[[#This Row],[m1]:[m12]]) -> NT$21,450 | Q17: 12% | R17: =IFERROR(tblCostofSales[[#This Row],[m1]]/tblCostofSales[[#Totals],[m1]],"-") -> 23% | S17: =IFERROR(tblCostofSales[[#This Row],[m2]]/tblCostofSales[[#Totals],[m2]],"-") -> 22% | T17: =IFERROR(tblCostofSales[[#This Row],[m3]]/tblCostofSales[[#Totals],[m3]],"-") -> 21% | U17: =IFERROR(tblCostofSales[[#This Row],[m4]]/tblCostofSales[[#Totals],[m4]],"-") -> 12% | V17: =IFERROR(tblCostofSales[[#This Row],[m5]]/tblCostofSales[[#Totals],[m5]],"-") -> 31% | W17: =IFERROR(tblCostofSales[[#This Row],[m6]]/tblCostofSales[[#Totals],[m6]],"-") -> 16% | X17: =IFERROR(tblCostofSales[[#This Row],[m7]]/tblCostofSales[[#Totals],[m7]],"-") -> 5% | Y17: =IFERROR(tblCostofSales[[#This Row],[m8]]/tblCostofSales[[#Totals],[m8]],"-") -> 12% | Z17: =IFERROR(tblCostofSales[[#This Row],[m9]]/tblCostofSales[[#Totals],[m9]],"-") -> 3% | AA17: =IFERROR(tblCostofSales[[#This Row],[m10]]/tblCostofSales[[#Totals],[m10]],"-") -> 47% | AB17: =IFERROR(tblCostofSales[[#This Row],[m11]]/tblCostofSales[[#Totals],[m11]],"-") -> 23% | AC17: =IFERROR(tblCostofSales[[#This Row],[m12]]/tblCostofSales[[#Totals],[m12]],"-") -> 14% | AD17: =IFERROR(tblCostofSales[[#This Row],[Yearly]]/tblCostofSales[[#Totals],[Yearly]],"-") -> 19%
B18: 成本 2 | D18: NT$210 | E18: NT$150 | F18: NT$2,070 | G18: NT$960 | H18: NT$330 | I18: NT$900 | J18: NT$810 | K18: NT$960 | L18: NT$300 | M18: NT$1,230 | N18: NT$390 | O18: NT$3,150 | P18: =SUM(tblCostofSales[[#This Row],[m1]:[m12]]) -> NT$11,460 | Q18: 18% | R18: =IFERROR(tblCostofSales[[#This Row],[m1]]/tblCostofSales[[#Totals],[m1]],"-") -> 3% | S18: =IFERROR(tblCostofSales[[#This Row],[m2]]/tblCostofSales[[#Totals],[m2]],"-") -> 1% | T18: =IFERROR(tblCostofSales[[#This Row],[m3]]/tblCostofSales[[#Totals],[m3]],"-") -> 22% | U18: =IFERROR(tblCostofSales[[#This Row],[m4]]/tblCostofSales[[#Totals],[m4]],"-") -> 13% | V18: =IFERROR(tblCostofSales[[#This Row],[m5]]/tblCostofSales[[#Totals],[m5]],"-") -> 3% | W18: =IFERROR(tblCostofSales[[#This Row],[m6]]/tblCostofSales[[#Totals],[m6]],"-") -> 10% | X18: =IFERROR(tblCostofSales[[#This Row],[m7]]/tblCostofSales[[#Totals],[m7]],"-") -> 9% | Y18: =IFERROR(tblCostofSales[[#This Row],[m8]]/tblCostofSales[[#Totals],[m8]],"-") -> 14% | Z18: =IFERROR(tblCostofSales[[#This Row],[m9]]/tblCostofSales[[#Totals],[m9]],"-") -> 2% | AA18: =IFERROR(tblCostofSales[[#This Row],[m10]]/tblCostofSales[[#Totals],[m10]],"-") -> 15% | AB18: =IFERROR(tblCostofSales[[#This Row],[m11]]/tblCostofSales[[#Totals],[m11]],"-") -> 5% | AC18: =IFERROR(tblCostofSales[[#This Row],[m12]]/tblCostofSales[[#Totals],[m12]],"-") -> 23% | AD18: =IFERROR(tblCostofSales[[#This Row],[Yearly]]/tblCostofSales[[#Totals],[Yearly]],"-") -> 10%
B19: 成本 3 | D19: NT$2,970 | E19: NT$2,850 | F19: NT$1,530 | G19: NT$2,700 | H19: NT$630 | I19: NT$1,020 | J19: NT$900 | K19: NT$720 | L19: NT$3,270 | M19: NT$480 | N19: NT$630 | O19: NT$1,560 | P19: =SUM(tblCostofSales[[#This Row],[m1]:[m12]]) -> NT$19,260 | Q19: 19% | R19: =IFERROR(tblCostofSales[[#This Row],[m1]]/tblCostofSales[[#Totals],[m1]],"-") -> 37% | S19: =IFERROR(tblCostofSales[[#This Row],[m2]]/tblCostofSales[[#Totals],[m2]],"-") -> 27% | T19: =IFERROR(tblCostofSales[[#This Row],[m3]]/tblCostofSales[[#Totals],[m3]],"-") -> 16% | U19: =IFERROR(tblCostofSales[[#This Row],[m4]]/tblCostofSales[[#Totals],[m4]],"-") -> 37% | V19: =IFERROR(tblCostofSales[[#This Row],[m5]]/tblCostofSales[[#Totals],[m5]],"-") -> 5% | W19: =IFERROR(tblCostofSales[[#This Row],[m6]]/tblCostofSales[[#Totals],[m6]],"-") -> 11% | X19: =IFERROR(tblCostofSales[[#This Row],[m7]]/tblCostofSales[[#Totals],[m7]],"-") -> 10% | Y19: =IFERROR(tblCostofSales[[#This Row],[m8]]/tblCostofSales[[#Totals],[m8]],"-") -> 11% | Z19: =IFERROR(tblCostofSales[[#This Row],[m9]]/tblCostofSales[[#Totals],[m9]],"-") -> 26% | AA19: =IFERROR(tblCostofSales[[#This Row],[m10]]/tblCostofSales[[#Totals],[m10]],"-") -> 6% | AB19: =IFERROR(tblCostofSales[[#This Row],[m11]]/tblCostofSales[[#Totals],[m11]],"-") -> 8% | AC19: =IFERROR(tblCostofSales[[#This Row],[m12]]/tblCostofSales[[#Totals],[m12]],"-") -> 11% | AD19: =IFERROR(tblCostofSales[[#This Row],[Yearly]]/tblCostofSales[[#Totals],[Yearly]],"-") -> 17%
B20: 成本 4 | D20: NT$390 | E20: NT$840 | F20: NT$450 | G20: NT$240 | H20: NT$2,520 | I20: NT$360 | J20: NT$1,620 | K20: NT$2,160 | L20: NT$1,470 | M20: NT$720 | N20: NT$1,800 | O20: NT$1,170 | P20: =SUM(tblCostofSales[[#This Row],[m1]:[m12]]) -> NT$13,740 | Q20: 11% | R20: =IFERROR(tblCostofSales[[#This Row],[m1]]/tblCostofSales[[#Totals],[m1]],"-") -> 5% | S20: =IFERROR(tblCostofSales[[#This Row],[m2]]/tblCostofSales[[#Totals],[m2]],"-") -> 8% | T20: =IFERROR(tblCostofSales[[#This Row],[m3]]/tblCostofSales[[#Totals],[m3]],"-") -> 5% | U20: =IFERROR(tblCostofSales[[#This Row],[m4]]/tblCostofSales[[#Totals],[m4]],"-") -> 3% | V20: =IFERROR(tblCostofSales[[#This Row],[m5]]/tblCostofSales[[#Totals],[m5]],"-") -> 21% | W20: =IFERROR(tblCostofSales[[#This Row],[m6]]/tblCostofSales[[#Totals],[m6]],"-") -> 4% | X20: =IFERROR(tblCostofSales[[#This Row],[m7]]/tblCostofSales[[#Totals],[m7]],"-") -> 18% | Y20: =IFERROR(tblCostofSales[[#This Row],[m8]]/tblCostofSales[[#Totals],[m8]],"-") -> 32% | Z20: =IFERROR(tblCostofSales[[#This Row],[m9]]/tblCostofSales[[#Totals],[m9]],"-") -> 12% | AA20: =IFERROR(tblCostofSales[[#This Row],[m10]]/tblCostofSales[[#Totals],[m10]],"-") -> 9% | AB20: =IFERROR(tblCostofSales[[#This Row],[m11]]/tblCostofSales[[#Totals],[m11]],"-") -> 23% | AC20: =IFERROR(tblCostofSales[[#This Row],[m12]]/tblCostofSales[[#Totals],[m12]],"-") -> 9% | AD20: =IFERROR(tblCostofSales[[#This Row],[Yearly]]/tblCostofSales[[#Totals],[Yearly]],"-") -> 12%
B21: 成本 5 | D21: NT$1,020 | E21: NT$2,340 | F21: NT$1,290 | G21: NT$900 | H21: NT$2,310 | I21: NT$1,620 | J21: NT$780 | K21: NT$390 | L21: NT$1,680 | M21: NT$900 | N21: NT$1,200 | O21: NT$1,890 | P21: =SUM(tblCostofSales[[#This Row],[m1]:[m12]]) -> NT$16,320 | Q21: 20% | R21: =IFERROR(tblCostofSales[[#This Row],[m1]]/tblCostofSales[[#Totals],[m1]],"-") -> 13% | S21: =IFERROR(tblCostofSales[[#This Row],[m2]]/tblCostofSales[[#Totals],[m2]],"-") -> 22% | T21: =IFERROR(tblCostofSales[[#This Row],[m3]]/tblCostofSales[[#Totals],[m3]],"-") -> 14% | U21: =IFERROR(tblCostofSales[[#This Row],[m4]]/tblCostofSales[[#Totals],[m4]],"-") -> 12% | V21: =IFERROR(tblCostofSales[[#This Row],[m5]]/tblCostofSales[[#Totals],[m5]],"-") -> 19% | W21: =IFERROR(tblCostofSales[[#This Row],[m6]]/tblCostofSales[[#Totals],[m6]],"-") -> 17% | X21: =IFERROR(tblCostofSales[[#This Row],[m7]]/tblCostofSales[[#Totals],[m7]],"-") -> 9% | Y21: =IFERROR(tblCostofSales[[#This Row],[m8]]/tblCostofSales[[#Totals],[m8]],"-") -> 6% | Z21: =IFERROR(tblCostofSales[[#This Row],[m9]]/tblCostofSales[[#Totals],[m9]],"-") -> 14% | AA21: =IFERROR(tblCostofSales[[#This Row],[m10]]/tblCostofSales[[#Totals],[m10]],"-") -> 11% | AB21: =IFERROR(tblCostofSales[[#This Row],[m11]]/tblCostofSales[[#Totals],[m11]],"-") -> 15% | AC21: =IFERROR(tblCostofSales[[#This Row],[m12]]/tblCostofSales[[#Totals],[m12]],"-") -> 14% | AD21: =IFERROR(tblCostofSales[[#This Row],[Yearly]]/tblCostofSales[[#Totals],[Yearly]],"-") -> 14%
B22: 成本 6 | D22: NT$990 | E22: NT$1,830 | F22: NT$1,260 | G22: NT$1,290 | H22: NT$570 | I22: NT$2,820 | J22: NT$1,380 | K22: NT$450 | L22: NT$1,650 | M22: NT$450 | N22: NT$1,110 | O22: NT$2,670 | P22: =SUM(tblCostofSales[[#This Row],[m1]:[m12]]) -> NT$16,470 | Q22: 10% | R22: =IFERROR(tblCostofSales[[#This Row],[m1]]/tblCostofSales[[#Totals],[m1]],"-") -> 12% | S22: =IFERROR(tblCostofSales[[#This Row],[m2]]/tblCostofSales[[#Totals],[m2]],"-") -> 17% | T22: =IFERROR(tblCostofSales[[#This Row],[m3]]/tblCostofSales[[#Totals],[m3]],"-") -> 13% | U22: =IFERROR(tblCostofSales[[#This Row],[m4]]/tblCostofSales[[#Totals],[m4]],"-") -> 18% | V22: =IFERROR(tblCostofSales[[#This Row],[m5]]/tblCostofSales[[#Totals],[m5]],"-") -> 5% | W22: =IFERROR(tblCostofSales[[#This Row],[m6]]/tblCostofSales[[#Totals],[m6]],"-") -> 30% | X22: =IFERROR(tblCostofSales[[#This Row],[m7]]/tblCostofSales[[#Totals],[m7]],"-") -> 15% | Y22: =IFERROR(tblCostofSales[[#This Row],[m8]]/tblCostofSales[[#Totals],[m8]],"-") -> 7% | Z22: =IFERROR(tblCostofSales[[#This Row],[m9]]/tblCostofSales[[#Totals],[m9]],"-") -> 13% | AA22: =IFERROR(tblCostofSales[[#This Row],[m10]]/tblCostofSales[[#Totals],[m10]],"-") -> 5% | AB22: =IFERROR(tblCostofSales[[#This Row],[m11]]/tblCostofSales[[#Totals],[m11]],"-") -> 14% | AC22: =IFERROR(tblCostofSales[[#This Row],[m12]]/tblCostofSales[[#Totals],[m12]],"-") -> 20% | AD22: =IFERROR(tblCostofSales[[#This Row],[Yearly]]/tblCostofSales[[#Totals],[Yearly]],"-") -> 14%
B23: 成本 7 | D23: NT$540 | E23: NT$330 | F23: NT$900 | G23: NT$270 | H23: NT$1,860 | I23: NT$1,170 | J23: NT$3,060 | K23: NT$1,320 | L23: NT$3,630 | M23: NT$570 | N23: NT$990 | O23: NT$1,200 | P23: =SUM(tblCostofSales[[#This Row],[m1]:[m12]]) -> NT$15,840 | Q23: 10% | R23: =IFERROR(tblCostofSales[[#This Row],[m1]]/tblCostofSales[[#Totals],[m1]],"-") -> 7% | S23: =IFERROR(tblCostofSales[[#This Row],[m2]]/tblCostofSales[[#Totals],[m2]],"-") -> 3% | T23: =IFERROR(tblCostofSales[[#This Row],[m3]]/tblCostofSales[[#Totals],[m3]],"-") -> 10% | U23: =IFERROR(tblCostofSales[[#This Row],[m4]]/tblCostofSales[[#Totals],[m4]],"-") -> 4% | V23: =IFERROR(tblCostofSales[[#This Row],[m5]]/tblCostofSales[[#Totals],[m5]],"-") -> 16% | W23: =IFERROR(tblCostofSales[[#This Row],[m6]]/tblCostofSales[[#Totals],[m6]],"-") -> 13% | X23: =IFERROR(tblCostofSales[[#This Row],[m7]]/tblCostofSales[[#Totals],[m7]],"-") -> 34% | Y23: =IFERROR(tblCostofSales[[#This Row],[m8]]/tblCostofSales[[#Totals],[m8]],"-") -> 19% | Z23: =IFERROR(tblCostofSales[[#This Row],[m9]]/tblCostofSales[[#Totals],[m9]],"-") -> 29% | AA23: =IFERROR(tblCostofSales[[#This Row],[m10]]/tblCostofSales[[#Totals],[m10]],"-") -> 7% | AB23: =IFERROR(tblCostofSales[[#This Row],[m11]]/tblCostofSales[[#Totals],[m11]],"-") -> 13% | AC23: =IFERROR(tblCostofSales[[#This Row],[m12]]/tblCostofSales[[#Totals],[m12]],"-") -> 9% | AD23: =IFERROR(tblCostofSales[[#This Row],[Yearly]]/tblCostofSales[[#Totals],[Yearly]],"-") -> 14%
B24: 總銷售成本 | D24: =SUBTOTAL(109,tblCostofSales[m1]) -> NT$7,950 | E24: =SUBTOTAL(109,tblCostofSales[m2]) -> NT$10,680 | F24: =SUBTOTAL(109,tblCostofSales[m3]) -> NT$9,450 | G24: =SUBTOTAL(109,tblCostofSales[m4]) -> NT$7,230 | H24: =SUBTOTAL(109,tblCostofSales[m5]) -> NT$11,970 | I24: =SUBTOTAL(109,tblCostofSales[m6]) -> NT$9,360 | J24: =SUBTOTAL(109,tblCostofSales[m7]) -> NT$8,970 | K24: =SUBTOTAL(109,tblCostofSales[m8]) -> NT$6,780 | L24: =SUBTOTAL(109,tblCostofSales[m9]) -> NT$12,420 | M24: =SUBTOTAL(109,tblCostofSales[m10]) -> NT$8,220 | N24: =SUBTOTAL(109,tblCostofSales[m11]) -> NT$7,920 | O24: =SUBTOTAL(109,tblCostofSales[m12]) -> NT$13,590 | P24: =SUBTOTAL(109,tblCostofSales[Yearly]) -> NT$114,540 | Q24: =SUBTOTAL(109,tblCostofSales[Ind %]) -> 100% | R24: =SUBTOTAL(109,tblCostofSales[% m1]) -> 100% | S24: =SUBTOTAL(109,tblCostofSales[% m2]) -> 100% | T24: =SUBTOTAL(109,tblCostofSales[% m3]) -> 100% | U24: =SUBTOTAL(109,tblCostofSales[% m4]) -> 100% | V24: =SUBTOTAL(109,tblCostofSales[% m5]) -> 100% | W24: =SUBTOTAL(109,tblCostofSales[% m6]) -> 100% | X24: =SUBTOTAL(109,tblCostofSales[% m7]) -> 100% | Y24: =SUBTOTAL(109,tblCostofSales[% m8]) -> 100% | Z24: =SUBTOTAL(109,tblCostofSales[% m9]) -> 100% | AA24: =SUBTOTAL(109,tblCostofSales[% m10]) -> 100% | AB24: =SUBTOTAL(109,tblCostofSales[% m11]) -> 100% | AC24: =SUBTOTAL(109,tblCostofSales[% m12]) -> 100% | AD24: =SUBTOTAL(109,tblCostofSales[% y]) -> 100%
B26: 毛利 | D26: =tblRevenue[[#Totals],[m1]]-tblCostofSales[[#Totals],[m1]] -> NT$10,770 | E26: =tblRevenue[[#Totals],[m2]]-tblCostofSales[[#Totals],[m2]] -> NT$11,400 | F26: =tblRevenue[[#Totals],[m3]]-tblCostofSales[[#Totals],[m3]] -> NT$15,150 | G26: =tblRevenue[[#Totals],[m4]]-tblCostofSales[[#Totals],[m4]] -> NT$11,100 | H26: =tblRevenue[[#Totals],[m5]]-tblCostofSales[[#Totals],[m5]] -> NT$12,390 | I26: =tblRevenue[[#Totals],[m6]]-tblCostofSales[[#Totals],[m6]] -> NT$7,980 | J26: =tblRevenue[[#Totals],[m7]]-tblCostofSales[[#Totals],[m7]] -> NT$8,940 | K26: =tblRevenue[[#Totals],[m8]]-tblCostofSales[[#Totals],[m8]] -> NT$13,470 | L26: =tblRevenue[[#Totals],[m9]]-tblCostofSales[[#Totals],[m9]] -> NT$9,900 | M26: =tblRevenue[[#Totals],[m10]]-tblCostofSales[[#Totals],[m10]] -> NT$12,210 | N26: =tblRevenue[[#Totals],[m11]]-tblCostofSales[[#Totals],[m11]] -> NT$14,250 | O26: =tblRevenue[[#Totals],[m12]]-tblCostofSales[[#Totals],[m12]] -> NT$17,700 | P26: =tblRevenue[[#Totals],[Yearly]]-tblCostofSales[[#Totals],[Yearly]] -> NT$145,260 | R26: =D26/$P$26 -> 7% | S26: =E26/$P$26 -> 8% | T26: 10% | U26: 8% | V26: 9% | W26: 5% | X26: 6% | Y26: 9% | Z26: 7% | AA26: 8% | AB26: 10% | AC26: 12% | AD26: 100%
B28: 支出 | C28: 趨勢 | D28: m1 | E28: m2 | F28: m3 | G28: m4 | H28: m5 | I28: m6 | J28: m7 | K28: m8 | L28: m9 | M28: m10 | N28: m11 | O28: m12 | P28: Yearly | Q28: Ind % | R28: % m1 | S28: % m2 | T28: % m3 | U28: % m4 | V28: % m5 | W28: % m6 | X28: % m7 | Y28: % m8 | Z28: % m9 | AA28: % m10 | AB28: % m11 | AC28: % m12 | AD28: % y
B29: 薪水支出 | D29: NT$300 | E29: NT$540 | F29: NT$390 | G29: NT$240 | H29: NT$660 | I29: NT$540 | J29: NT$240 | K29: NT$510 | L29: NT$600 | M29: NT$240 | N29: NT$120 | O29: NT$360 | P29: =SUM(tblExpenses[[#This Row],[m1]:[m12]]) -> NT$4,740 | Q29: 12% | R29: =tblExpenses[[#This Row],[m1]]/tblExpenses[[#Totals],[m1]] -> 4% | S29: =tblExpenses[[#This Row],[m2]]/tblExpenses[[#Totals],[m2]] -> 9% | T29: =tblExpenses[[#This Row],[m3]]/tblExpenses[[#Totals],[m3]] -> 5% | U29: =tblExpenses[[#This Row],[m4]]/tblExpenses[[#Totals],[m4]] -> 3% | V29: =tblExpenses[[#This Row],[m5]]/tblExpenses[[#Totals],[m5]] -> 9% | W29: =tblExpenses[[#This Row],[m6]]/tblExpenses[[#Totals],[m6]] -> 7% | X29: =tblExpenses[[#This Row],[m7]]/tblExpenses[[#Totals],[m7]] -> 3% | Y29: =tblExpenses[[#This Row],[m8]]/tblExpenses[[#Totals],[m8]] -> 7% | Z29: =tblExpenses[[#This Row],[m9]]/tblExpenses[[#Totals],[m9]] -> 9% | AA29: =tblExpenses[[#This Row],[m10]]/tblExpenses[[#Totals],[m10]] -> 3% | AB29: =tblExpenses[[#This Row],[m11]]/tblExpenses[[#Totals],[m11]] -> 1% | AC29: =tblExpenses[[#This Row],[m12]]/tblExpenses[[#Totals],[m12]] -> 5% | AD29: =tblExpenses[[#This Row],[Yearly]]/tblExpenses[[#Totals],[Yearly]] -> 5%
B30: 薪資支出 | D30: NT$690 | E30: NT$330 | F30: NT$210 | G30: NT$420 | H30: NT$360 | I30: NT$570 | J30: NT$570 | K30: NT$120 | L30: NT$210 | M30: NT$390 | N30: NT$750 | O30: NT$150 | P30: =SUM(tblExpenses[[#This Row],[m1]:[m12]]) -> NT$4,770 | Q30: 9% | R30: =tblExpenses[[#This Row],[m1]]/tblExpenses[[#Totals],[m1]] -> 10% | S30: =tblExpenses[[#This Row],[m2]]/tblExpenses[[#Totals],[m2]] -> 5% | T30: =tblExpenses[[#This Row],[m3]]/tblExpenses[[#Totals],[m3]] -> 3% | U30: =tblExpenses[[#This Row],[m4]]/tblExpenses[[#Totals],[m4]] -> 5% | V30: =tblExpenses[[#This Row],[m5]]/tblExpenses[[#Totals],[m5]] -> 5% | W30: =tblExpenses[[#This Row],[m6]]/tblExpenses[[#Totals],[m6]] -> 7% | X30: =tblExpenses[[#This Row],[m7]]/tblExpenses[[#Totals],[m7]] -> 7% | Y30: =tblExpenses[[#This Row],[m8]]/tblExpenses[[#Totals],[m8]] -> 2% | Z30: =tblExpenses[[#This Row],[m9]]/tblExpenses[[#Totals],[m9]] -> 3% | AA30: =tblExpenses[[#This Row],[m10]]/tblExpenses[[#Totals],[m10]] -> 5% | AB30: =tblExpenses[[#This Row],[m11]]/tblExpenses[[#Totals],[m11]] -> 8% | AC30: =tblExpenses[[#This Row],[m12]]/tblExpenses[[#Totals],[m12]] -> 2% | AD30: =tblExpenses[[#This Row],[Yearly]]/tblExpenses[[#Totals],[Yearly]] -> 5%
B31: 外部服務 | D31: NT$690 | E31: NT$600 | F31: NT$90 | G31: NT$480 | H31: NT$300 | I31: NT$150 | J31: NT$600 | K31: NT$210 | L31: NT$120 | M31: NT$660 | N31: NT$390 | O31: NT$420 | P31: =SUM(tblExpenses[[#This Row],[m1]:[m12]]) -> NT$4,710 | Q31: 2% | R31: =tblExpenses[[#This Row],[m1]]/tblExpenses[[#Totals],[m1]] -> 10% | S31: =tblExpenses[[#This Row],[m2]]/tblExpenses[[#Totals],[m2]] -> 10% | T31: =tblExpenses[[#This Row],[m3]]/tblExpenses[[#Totals],[m3]] -> 1% | U31: =tblExpenses[[#This Row],[m4]]/tblExpenses[[#Totals],[m4]] -> 6% | V31: =tblExpenses[[#This Row],[m5]]/tblExpenses[[#Totals],[m5]] -> 4% | W31: =tblExpenses[[#This Row],[m6]]/tblExpenses[[#Totals],[m6]] -> 2% | X31: =tblExpenses[[#This Row],[m7]]/tblExpenses[[#Totals],[m7]] -> 8% | Y31: =tblExpenses[[#This Row],[m8]]/tblExpenses[[#Totals],[m8]] -> 3% | Z31: =tblExpenses[[#This Row],[m9]]/tblExpenses[[#Totals],[m9]] -> 2% | AA31: =tblExpenses[[#This Row],[m10]]/tblExpenses[[#Totals],[m10]] -> 8% | AB31: =tblExpenses[[#This Row],[m11]]/tblExpenses[[#Totals],[m11]] -> 4% | AC31: =tblExpenses[[#This Row],[m12]]/tblExpenses[[#Totals],[m12]] -> 6% | AD31: =tblExpenses[[#This Row],[Yearly]]/tblExpenses[[#Totals],[Yearly]] -> 5%
B32: 辦公室用品 (辦公室與營運) | D32: NT$570 | E32: NT$120 | F32: NT$210 | G32: NT$420 | H32: NT$660 | I32: NT$300 | J32: NT$660 | K32: NT$150 | L32: NT$120 | M32: NT$360 | N32: NT$540 | O32: NT$720 | P32: =SUM(tblExpenses[[#This Row],[m1]:[m12]]) -> NT$4,830 | Q32: 8% | R32: =tblExpenses[[#This Row],[m1]]/tblExpenses[[#Totals],[m1]] -> 8% | S32: =tblExpenses[[#This Row],[m2]]/tblExpenses[[#Totals],[m2]] -> 2% | T32: =tblExpenses[[#This Row],[m3]]/tblExpenses[[#Totals],[m3]] -> 3% | U32: =tblExpenses[[#This Row],[m4]]/tblExpenses[[#Totals],[m4]] -> 5% | V32: =tblExpenses[[#This Row],[m5]]/tblExpenses[[#Totals],[m5]] -> 9% | W32: =tblExpenses[[#This Row],[m6]]/tblExpenses[[#Totals],[m6]] -> 4% | X32: =tblExpenses[[#This Row],[m7]]/tblExpenses[[#Totals],[m7]] -> 8% | Y32: =tblExpenses[[#This Row],[m8]]/tblExpenses[[#Totals],[m8]] -> 2% | Z32: =tblExpenses[[#This Row],[m9]]/tblExpenses[[#Totals],[m9]] -> 2% | AA32: =tblExpenses[[#This Row],[m10]]/tblExpenses[[#Totals],[m10]] -> 5% | AB32: =tblExpenses[[#This Row],[m11]]/tblExpenses[[#Totals],[m11]] -> 6% | AC32: =tblExpenses[[#This Row],[m12]]/tblExpenses[[#Totals],[m12]] -> 10% | AD32: =tblExpenses[[#This Row],[Yearly]]/tblExpenses[[#Totals],[Yearly]] -> 5%
B33: 維修與維護 | D33: NT$330 | E33: NT$330 | F33: NT$510 | G33: NT$360 | H33: NT$60 | I33: NT$420 | J33: NT$360 | K33: NT$300 | L33: NT$540 | M33: NT$330 | N33: NT$690 | O33: NT$330 | P33: =SUM(tblExpenses[[#This Row],[m1]:[m12]]) -> NT$4,560 | Q33: 3% | R33: =tblExpenses[[#This Row],[m1]]/tblExpenses[[#Totals],[m1]] -> 5% | S33: =tblExpenses[[#This Row],[m2]]/tblExpenses[[#Totals],[m2]] -> 5% | T33: =tblExpenses[[#This Row],[m3]]/tblExpenses[[#Totals],[m3]] -> 7% | U33: =tblExpenses[[#This Row],[m4]]/tblExpenses[[#Totals],[m4]] -> 5% | V33: =tblExpenses[[#This Row],[m5]]/tblExpenses[[#Totals],[m5]] -> 1% | W33: =tblExpenses[[#This Row],[m6]]/tblExpenses[[#Totals],[m6]] -> 5% | X33: =tblExpenses[[#This Row],[m7]]/tblExpenses[[#Totals],[m7]] -> 5% | Y33: =tblExpenses[[#This Row],[m8]]/tblExpenses[[#Totals],[m8]] -> 4% | Z33: =tblExpenses[[#This Row],[m9]]/tblExpenses[[#Totals],[m9]] -> 8% | AA33: =tblExpenses[[#This Row],[m10]]/tblExpenses[[#Totals],[m10]] -> 4% | AB33: =tblExpenses[[#This Row],[m11]]/tblExpenses[[#Totals],[m11]] -> 8% | AC33: =tblExpenses[[#This Row],[m12]]/tblExpenses[[#Totals],[m12]] -> 5% | AD33: =tblExpenses[[#This Row],[Yearly]]/tblExpenses[[#Totals],[Yearly]] -> 5%
B34: 廣告 | D34: NT$60 | E34: NT$480 | F34: NT$180 | G34: NT$390 | H34: NT$330 | I34: NT$660 | J34: NT$630 | K34: NT$90 | L34: NT$360 | M34: NT$210 | N34: NT$510 | O34: NT$600 | P34: =SUM(tblExpenses[[#This Row],[m1]:[m12]]) -> NT$4,500 | Q34: 15% | R34: =tblExpenses[[#This Row],[m1]]/tblExpenses[[#Totals],[m1]] -> 1% | S34: =tblExpenses[[#This Row],[m2]]/tblExpenses[[#Totals],[m2]] -> 8% | T34: =tblExpenses[[#This Row],[m3]]/tblExpenses[[#Totals],[m3]] -> 2% | U34: =tblExpenses[[#This Row],[m4]]/tblExpenses[[#Totals],[m4]] -> 5% | V34: =tblExpenses[[#This Row],[m5]]/tblExpenses[[#Totals],[m5]] -> 4% | W34: =tblExpenses[[#This Row],[m6]]/tblExpenses[[#Totals],[m6]] -> 8% | X34: =tblExpenses[[#This Row],[m7]]/tblExpenses[[#Totals],[m7]] -> 8% | Y34: =tblExpenses[[#This Row],[m8]]/tblExpenses[[#Totals],[m8]] -> 1% | Z34: =tblExpenses[[#This Row],[m9]]/tblExpenses[[#Totals],[m9]] -> 5% | AA34: =tblExpenses[[#This Row],[m10]]/tblExpenses[[#Totals],[m10]] -> 3% | AB34: =tblExpenses[[#This Row],[m11]]/tblExpenses[[#Totals],[m11]] -> 6% | AC34: =tblExpenses[[#This Row],[m12]]/tblExpenses[[#Totals],[m12]] -> 9% | AD34: =tblExpenses[[#This Row],[Yearly]]/tblExpenses[[#Totals],[Yearly]] -> 5%
B35: 汽車、送貨與差旅 | D35: NT$240 | E35: NT$510 | F35: NT$330 | G35: NT$330 | H35: NT$630 | I35: NT$270 | J35: NT$600 | K35: NT$90 | L35: NT$420 | M35: NT$660 | N35: NT$480 | O35: NT$360 | P35: =SUM(tblExpenses[[#This Row],[m1]:[m12]]) -> NT$4,920 | Q35: 12% | R35: =tblExpenses[[#This Row],[m1]]/tblExpenses[[#Totals],[m1]] -> 3% | S35: =tblExpenses[[#This Row],[m2]]/tblExpenses[[#Totals],[m2]] -> 8% | T35: =tblExpenses[[#This Row],[m3]]/tblExpenses[[#Totals],[m3]] -> 4% | U35: =tblExpenses[[#This Row],[m4]]/tblExpenses[[#Totals],[m4]] -> 4% | V35: =tblExpenses[[#This Row],[m5]]/tblExpenses[[#Totals],[m5]] -> 8% | W35: =tblExpenses[[#This Row],[m6]]/tblExpenses[[#Totals],[m6]] -> 3% | X35: =tblExpenses[[#This Row],[m7]]/tblExpenses[[#Totals],[m7]] -> 8% | Y35: =tblExpenses[[#This Row],[m8]]/tblExpenses[[#Totals],[m8]] -> 1% | Z35: =tblExpenses[[#This Row],[m9]]/tblExpenses[[#Totals],[m9]] -> 6% | AA35: =tblExpenses[[#This Row],[m10]]/tblExpenses[[#Totals],[m10]] -> 8% | AB35: =tblExpenses[[#This Row],[m11]]/tblExpenses[[#Totals],[m11]] -> 5% | AC35: =tblExpenses[[#This Row],[m12]]/tblExpenses[[#Totals],[m12]] -> 5% | AD35: =tblExpenses[[#This Row],[Yearly]]/tblExpenses[[#Totals],[Yearly]] -> 5%
B36: 會計與法律費用 | D36: NT$150 | E36: NT$390 | F36: NT$180 | G36: NT$450 | H36: NT$570 | I36: NT$300 | J36: NT$360 | K36: NT$270 | L36: NT$450 | M36: NT$480 | N36: NT$120 | O36: NT$270 | P36: =SUM(tblExpenses[[#This Row],[m1]:[m12]]) -> NT$3,990 | Q36: 9% | R36: =tblExpenses[[#This Row],[m1]]/tblExpenses[[#Totals],[m1]] -> 2% | S36: =tblExpenses[[#This Row],[m2]]/tblExpenses[[#Totals],[m2]] -> 6% | T36: =tblExpenses[[#This Row],[m3]]/tblExpenses[[#Totals],[m3]] -> 2% | U36: =tblExpenses[[#This Row],[m4]]/tblExpenses[[#Totals],[m4]] -> 6% | V36: =tblExpenses[[#This Row],[m5]]/tblExpenses[[#Totals],[m5]] -> 7% | W36: =tblExpenses[[#This Row],[m6]]/tblExpenses[[#Totals],[m6]] -> 4% | X36: =tblExpenses[[#This Row],[m7]]/tblExpenses[[#Totals],[m7]] -> 5% | Y36: =tblExpenses[[#This Row],[m8]]/tblExpenses[[#Totals],[m8]] -> 4% | Z36: =tblExpenses[[#This Row],[m9]]/tblExpenses[[#Totals],[m9]] -> 7% | AA36: =tblExpenses[[#This Row],[m10]]/tblExpenses[[#Totals],[m10]] -> 6% | AB36: =tblExpenses[[#This Row],[m11]]/tblExpenses[[#Totals],[m11]] -> 1% | AC36: =tblExpenses[[#This Row],[m12]]/tblExpenses[[#Totals],[m12]] -> 4% | AD36: =tblExpenses[[#This Row],[Yearly]]/tblExpenses[[#Totals],[Yearly]] -> 4%
B37: 租金 | D37: NT$240 | E37: NT$120 | F37: NT$690 | G37: NT$750 | H37: NT$300 | I37: NT$720 | J37: NT$660 | K37: NT$150 | L37: NT$360 | M37: NT$720 | N37: NT$720 | O37: NT$360 | P37: =SUM(tblExpenses[[#This Row],[m1]:[m12]]) -> NT$5,790 | Q37: 1% | R37: =tblExpenses[[#This Row],[m1]]/tblExpenses[[#Totals],[m1]] -> 3% | S37: =tblExpenses[[#This Row],[m2]]/tblExpenses[[#Totals],[m2]] -> 2% | T37: =tblExpenses[[#This Row],[m3]]/tblExpenses[[#Totals],[m3]] -> 9% | U37: =tblExpenses[[#This Row],[m4]]/tblExpenses[[#Totals],[m4]] -> 10% | V37: =tblExpenses[[#This Row],[m5]]/tblExpenses[[#Totals],[m5]] -> 4% | W37: =tblExpenses[[#This Row],[m6]]/tblExpenses[[#Totals],[m6]] -> 9% | X37: =tblExpenses[[#This Row],[m7]]/tblExpenses[[#Totals],[m7]] -> 8% | Y37: =tblExpenses[[#This Row],[m8]]/tblExpenses[[#Totals],[m8]] -> 2% | Z37: =tblExpenses[[#This Row],[m9]]/tblExpenses[[#Totals],[m9]] -> 5% | AA37: =tblExpenses[[#This Row],[m10]]/tblExpenses[[#Totals],[m10]] -> 9% | AB37: =tblExpenses[[#This Row],[m11]]/tblExpenses[[#Totals],[m11]] -> 8% | AC37: =tblExpenses[[#This Row],[m12]]/tblExpenses[[#Totals],[m12]] -> 5% | AD37: =tblExpenses[[#This Row],[Yearly]]/tblExpenses[[#Totals],[Yearly]] -> 6%
B38: 電話 | D38: NT$750 | E38: NT$60 | F38: NT$360 | G38: NT$750 | H38: NT$300 | I38: NT$720 | J38: NT$90 | K38: NT$600 | L38: NT$90 | M38: NT$270 | N38: NT$600 | O38: NT$540 | P38: =SUM(tblExpenses[[#This Row],[m1]:[m12]]) -> NT$5,130 | Q38: 1% | R38: =tblExpenses[[#This Row],[m1]]/tblExpenses[[#Totals],[m1]] -> 11% | S38: =tblExpenses[[#This Row],[m2]]/tblExpenses[[#Totals],[m2]] -> 1% | T38: =tblExpenses[[#This Row],[m3]]/tblExpenses[[#Totals],[m3]] -> 5% | U38: =tblExpenses[[#This Row],[m4]]/tblExpenses[[#Totals],[m4]] -> 10% | V38: =tblExpenses[[#This Row],[m5]]/tblExpenses[[#Totals],[m5]] -> 4% | W38: =tblExpenses[[#This Row],[m6]]/tblExpenses[[#Totals],[m6]] -> 9% | X38: =tblExpenses[[#This Row],[m7]]/tblExpenses[[#Totals],[m7]] -> 1% | Y38: =tblExpenses[[#This Row],[m8]]/tblExpenses[[#Totals],[m8]] -> 9% | Z38: =tblExpenses[[#This Row],[m9]]/tblExpenses[[#Totals],[m9]] -> 1% | AA38: =tblExpenses[[#This Row],[m10]]/tblExpenses[[#Totals],[m10]] -> 3% | AB38: =tblExpenses[[#This Row],[m11]]/tblExpenses[[#Totals],[m11]] -> 7% | AC38: =tblExpenses[[#This Row],[m12]]/tblExpenses[[#Totals],[m12]] -> 8% | AD38: =tblExpenses[[#This Row],[Yearly]]/tblExpenses[[#Totals],[Yearly]] -> 6%
B39: 公用事業 | D39: NT$480 | E39: NT$570 | F39: NT$270 | G39: NT$480 | H39: NT$390 | I39: NT$60 | J39: NT$120 | K39: NT$720 | L39: NT$480 | M39: NT$660 | N39: NT$210 | O39: NT$540 | P39: =SUM(tblExpenses[[#This Row],[m1]:[m12]]) -> NT$4,980 | Q39: 1% | R39: =tblExpenses[[#This Row],[m1]]/tblExpenses[[#Totals],[m1]] -> 7% | S39: =tblExpenses[[#This Row],[m2]]/tblExpenses[[#Totals],[m2]] -> 9% | T39: =tblExpenses[[#This Row],[m3]]/tblExpenses[[#Totals],[m3]] -> 4% | U39: =tblExpenses[[#This Row],[m4]]/tblExpenses[[#Totals],[m4]] -> 6% | V39: =tblExpenses[[#This Row],[m5]]/tblExpenses[[#Totals],[m5]] -> 5% | W39: =tblExpenses[[#This Row],[m6]]/tblExpenses[[#Totals],[m6]] -> 1% | X39: =tblExpenses[[#This Row],[m7]]/tblExpenses[[#Totals],[m7]] -> 2% | Y39: =tblExpenses[[#This Row],[m8]]/tblExpenses[[#Totals],[m8]] -> 10% | Z39: =tblExpenses[[#This Row],[m9]]/tblExpenses[[#Totals],[m9]] -> 7% | AA39: =tblExpenses[[#This Row],[m10]]/tblExpenses[[#Totals],[m10]] -> 8% | AB39: =tblExpenses[[#This Row],[m11]]/tblExpenses[[#Totals],[m11]] -> 2% | AC39: =tblExpenses[[#This Row],[m12]]/tblExpenses[[#Totals],[m12]] -> 8% | AD39: =tblExpenses[[#This Row],[Yearly]]/tblExpenses[[#Totals],[Yearly]] -> 6%
B40: 保險 | D40: NT$360 | E40: NT$270 | F40: NT$480 | G40: NT$570 | H40: NT$750 | I40: NT$510 | J40: NT$600 | K40: NT$420 | L40: NT$150 | M40: NT$420 | N40: NT$150 | O40: NT$60 | P40: =SUM(tblExpenses[[#This Row],[m1]:[m12]]) -> NT$4,740 | Q40: 1% | R40: =tblExpenses[[#This Row],[m1]]/tblExpenses[[#Totals],[m1]] -> 5% | S40: =tblExpenses[[#This Row],[m2]]/tblExpenses[[#Totals],[m2]] -> 4% | T40: =tblExpenses[[#This Row],[m3]]/tblExpenses[[#Totals],[m3]] -> 6% | U40: =tblExpenses[[#This Row],[m4]]/tblExpenses[[#Totals],[m4]] -> 7% | V40: =tblExpenses[[#This Row],[m5]]/tblExpenses[[#Totals],[m5]] -> 10% | W40: =tblExpenses[[#This Row],[m6]]/tblExpenses[[#Totals],[m6]] -> 6% | X40: =tblExpenses[[#This Row],[m7]]/tblExpenses[[#Totals],[m7]] -> 8% | Y40: =tblExpenses[[#This Row],[m8]]/tblExpenses[[#Totals],[m8]] -> 6% | Z40: =tblExpenses[[#This Row],[m9]]/tblExpenses[[#Totals],[m9]] -> 2% | AA40: =tblExpenses[[#This Row],[m10]]/tblExpenses[[#Totals],[m10]] -> 5% | AB40: =tblExpenses[[#This Row],[m11]]/tblExpenses[[#Totals],[m11]] -> 2% | AC40: =tblExpenses[[#This Row],[m12]]/tblExpenses[[#Totals],[m12]] -> 1% | AD40: =tblExpenses[[#This Row],[Yearly]]/tblExpenses[[#Totals],[Yearly]] -> 5%
B41: 稅金 (不動產等) | D41: NT$480 | E41: NT$390 | F41: NT$300 | G41: NT$210 | H41: NT$390 | I41: NT$90 | J41: NT$390 | K41: NT$510 | L41: NT$270 | M41: NT$120 | N41: NT$660 | O41: NT$540 | P41: =SUM(tblExpenses[[#This Row],[m1]:[m12]]) -> NT$4,350 | Q41: 14% | R41: =tblExpenses[[#This Row],[m1]]/tblExpenses[[#Totals],[m1]] -> 7% | S41: =tblExpenses[[#This Row],[m2]]/tblExpenses[[#Totals],[m2]] -> 6% | T41: =tblExpenses[[#This Row],[m3]]/tblExpenses[[#Totals],[m3]] -> 4% | U41: =tblExpenses[[#This Row],[m4]]/tblExpenses[[#Totals],[m4]] -> 3% | V41: =tblExpenses[[#This Row],[m5]]/tblExpenses[[#Totals],[m5]] -> 5% | W41: =tblExpenses[[#This Row],[m6]]/tblExpenses[[#Totals],[m6]] -> 1% | X41: =tblExpenses[[#This Row],[m7]]/tblExpenses[[#Totals],[m7]] -> 5% | Y41: =tblExpenses[[#This Row],[m8]]/tblExpenses[[#Totals],[m8]] -> 7% | Z41: =tblExpenses[[#This Row],[m9]]/tblExpenses[[#Totals],[m9]] -> 4% | AA41: =tblExpenses[[#This Row],[m10]]/tblExpenses[[#Totals],[m10]] -> 2% | AB41: =tblExpenses[[#This Row],[m11]]/tblExpenses[[#Totals],[m11]] -> 7% | AC41: =tblExpenses[[#This Row],[m12]]/tblExpenses[[#Totals],[m12]] -> 8% | AD41: =tblExpenses[[#This Row],[Yearly]]/tblExpenses[[#Totals],[Yearly]] -> 5%
B42: 利息 | D42: NT$90 | E42: NT$60 | F42: NT$570 | G42: NT$630 | H42: NT$390 | I42: NT$270 | J42: NT$210 | K42: NT$390 | L42: NT$90 | M42: NT$180 | N42: NT$300 | O42: NT$390 | P42: =SUM(tblExpenses[[#This Row],[m1]:[m12]]) -> NT$3,570 | Q42: 6% | R42: =tblExpenses[[#This Row],[m1]]/tblExpenses[[#Totals],[m1]] -> 1% | S42: =tblExpenses[[#This Row],[m2]]/tblExpenses[[#Totals],[m2]] -> 1% | T42: =tblExpenses[[#This Row],[m3]]/tblExpenses[[#Totals],[m3]] -> 8% | U42: =tblExpenses[[#This Row],[m4]]/tblExpenses[[#Totals],[m4]] -> 8% | V42: =tblExpenses[[#This Row],[m5]]/tblExpenses[[#Totals],[m5]] -> 5% | W42: =tblExpenses[[#This Row],[m6]]/tblExpenses[[#Totals],[m6]] -> 3% | X42: =tblExpenses[[#This Row],[m7]]/tblExpenses[[#Totals],[m7]] -> 3% | Y42: =tblExpenses[[#This Row],[m8]]/tblExpenses[[#Totals],[m8]] -> 6% | Z42: =tblExpenses[[#This Row],[m9]]/tblExpenses[[#Totals],[m9]] -> 1% | AA42: =tblExpenses[[#This Row],[m10]]/tblExpenses[[#Totals],[m10]] -> 2% | AB42: =tblExpenses[[#This Row],[m11]]/tblExpenses[[#Totals],[m11]] -> 3% | AC42: =tblExpenses[[#This Row],[m12]]/tblExpenses[[#Totals],[m12]] -> 6% | AD42: =tblExpenses[[#This Row],[Yearly]]/tblExpenses[[#Totals],[Yearly]] -> 4%
B43: 折舊 | D43: NT$240 | E43: NT$210 | F43: NT$180 | G43: NT$210 | H43: NT$210 | I43: NT$180 | J43: NT$450 | K43: NT$690 | L43: NT$630 | M43: NT$480 | N43: NT$570 | O43: NT$210 | P43: =SUM(tblExpenses[[#This Row],[m1]:[m12]]) -> NT$4,260 | Q43: 1% | R43: =tblExpenses[[#This Row],[m1]]/tblExpenses[[#Totals],[m1]] -> 3% | S43: =tblExpenses[[#This Row],[m2]]/tblExpenses[[#Totals],[m2]] -> 3% | T43: =tblExpenses[[#This Row],[m3]]/tblExpenses[[#Totals],[m3]] -> 2% | U43: =tblExpenses[[#This Row],[m4]]/tblExpenses[[#Totals],[m4]] -> 3% | V43: =tblExpenses[[#This Row],[m5]]/tblExpenses[[#Totals],[m5]] -> 3% | W43: =tblExpenses[[#This Row],[m6]]/tblExpenses[[#Totals],[m6]] -> 2% | X43: =tblExpenses[[#This Row],[m7]]/tblExpenses[[#Totals],[m7]] -> 6% | Y43: =tblExpenses[[#This Row],[m8]]/tblExpenses[[#Totals],[m8]] -> 10% | Z43: =tblExpenses[[#This Row],[m9]]/tblExpenses[[#Totals],[m9]] -> 9% | AA43: =tblExpenses[[#This Row],[m10]]/tblExpenses[[#Totals],[m10]] -> 6% | AB43: =tblExpenses[[#This Row],[m11]]/tblExpenses[[#Totals],[m11]] -> 6% | AC43: =tblExpenses[[#This Row],[m12]]/tblExpenses[[#Totals],[m12]] -> 3% | AD43: =tblExpenses[[#This Row],[Yearly]]/tblExpenses[[#Totals],[Yearly]] -> 5%
B44: 其他支出 (請載明) | D44: NT$420 | E44: NT$120 | F44: NT$720 | G44: NT$180 | H44: NT$600 | I44: NT$420 | J44: NT$630 | K44: NT$600 | L44: NT$660 | M44: NT$90 | N44: NT$420 | O44: NT$180 | P44: =SUM(tblExpenses[[#This Row],[m1]:[m12]]) -> NT$5,040 | Q44: 1% | R44: =tblExpenses[[#This Row],[m1]]/tblExpenses[[#Totals],[m1]] -> 6% | S44: =tblExpenses[[#This Row],[m2]]/tblExpenses[[#Totals],[m2]] -> 2% | T44: =tblExpenses[[#This Row],[m3]]/tblExpenses[[#Totals],[m3]] -> 10% | U44: =tblExpenses[[#This Row],[m4]]/tblExpenses[[#Totals],[m4]] -> 2% | V44: =tblExpenses[[#This Row],[m5]]/tblExpenses[[#Totals],[m5]] -> 8% | W44: =tblExpenses[[#This Row],[m6]]/tblExpenses[[#Totals],[m6]] -> 5% | X44: =tblExpenses[[#This Row],[m7]]/tblExpenses[[#Totals],[m7]] -> 8% | Y44: =tblExpenses[[#This Row],[m8]]/tblExpenses[[#Totals],[m8]] -> 9% | Z44: =tblExpenses[[#This Row],[m9]]/tblExpenses[[#Totals],[m9]] -> 10% | AA44: =tblExpenses[[#This Row],[m10]]/tblExpenses[[#Totals],[m10]] -> 1% | AB44: =tblExpenses[[#This Row],[m11]]/tblExpenses[[#Totals],[m11]] -> 5% | AC44: =tblExpenses[[#This Row],[m12]]/tblExpenses[[#Totals],[m12]] -> 3% | AD44: =tblExpenses[[#This Row],[Yearly]]/tblExpenses[[#Totals],[Yearly]] -> 6%
B45: 其他支出 (請載明) | D45: NT$420 | E45: NT$210 | F45: NT$720 | G45: NT$300 | H45: NT$210 | I45: NT$720 | J45: NT$60 | K45: NT$330 | L45: NT$630 | M45: NT$570 | N45: NT$570 | O45: NT$600 | P45: =SUM(tblExpenses[[#This Row],[m1]:[m12]]) -> NT$5,340 | Q45: 1% | R45: =tblExpenses[[#This Row],[m1]]/tblExpenses[[#Totals],[m1]] -> 6% | S45: =tblExpenses[[#This Row],[m2]]/tblExpenses[[#Totals],[m2]] -> 3% | T45: =tblExpenses[[#This Row],[m3]]/tblExpenses[[#Totals],[m3]] -> 10% | U45: =tblExpenses[[#This Row],[m4]]/tblExpenses[[#Totals],[m4]] -> 4% | V45: =tblExpenses[[#This Row],[m5]]/tblExpenses[[#Totals],[m5]] -> 3% | W45: =tblExpenses[[#This Row],[m6]]/tblExpenses[[#Totals],[m6]] -> 9% | X45: =tblExpenses[[#This Row],[m7]]/tblExpenses[[#Totals],[m7]] -> 1% | Y45: =tblExpenses[[#This Row],[m8]]/tblExpenses[[#Totals],[m8]] -> 5% | Z45: =tblExpenses[[#This Row],[m9]]/tblExpenses[[#Totals],[m9]] -> 9% | AA45: =tblExpenses[[#This Row],[m10]]/tblExpenses[[#Totals],[m10]] -> 7% | AB45: =tblExpenses[[#This Row],[m11]]/tblExpenses[[#Totals],[m11]] -> 6% | AC45: =tblExpenses[[#This Row],[m12]]/tblExpenses[[#Totals],[m12]] -> 9% | AD45: =tblExpenses[[#This Row],[Yearly]]/tblExpenses[[#Totals],[Yearly]] -> 6%
B46: 其他支出 (請載明) | D46: NT$330 | E46: NT$240 | F46: NT$750 | G46: NT$330 | H46: NT$270 | I46: NT$720 | J46: NT$390 | K46: NT$420 | L46: NT$570 | M46: NT$720 | N46: NT$450 | O46: NT$210 | P46: =SUM(tblExpenses[[#This Row],[m1]:[m12]]) -> NT$5,400 | Q46: 1% | R46: =tblExpenses[[#This Row],[m1]]/tblExpenses[[#Totals],[m1]] -> 5% | S46: =tblExpenses[[#This Row],[m2]]/tblExpenses[[#Totals],[m2]] -> 4% | T46: =tblExpenses[[#This Row],[m3]]/tblExpenses[[#Totals],[m3]] -> 10% | U46: =tblExpenses[[#This Row],[m4]]/tblExpenses[[#Totals],[m4]] -> 4% | V46: =tblExpenses[[#This Row],[m5]]/tblExpenses[[#Totals],[m5]] -> 4% | W46: =tblExpenses[[#This Row],[m6]]/tblExpenses[[#Totals],[m6]] -> 9% | X46: =tblExpenses[[#This Row],[m7]]/tblExpenses[[#Totals],[m7]] -> 5% | Y46: =tblExpenses[[#This Row],[m8]]/tblExpenses[[#Totals],[m8]] -> 6% | Z46: =tblExpenses[[#This Row],[m9]]/tblExpenses[[#Totals],[m9]] -> 8% | AA46: =tblExpenses[[#This Row],[m10]]/tblExpenses[[#Totals],[m10]] -> 9% | AB46: =tblExpenses[[#This Row],[m11]]/tblExpenses[[#Totals],[m11]] -> 5% | AC46: =tblExpenses[[#This Row],[m12]]/tblExpenses[[#Totals],[m12]] -> 3% | AD46: =tblExpenses[[#This Row],[Yearly]]/tblExpenses[[#Totals],[Yearly]] -> 6%
B47: 其他 (不特定) | D47: NT$240 | E47: NT$600 | F47: NT$330 | G47: NT$330 | H47: NT$330 | I47: NT$600 | J47: NT$360 | K47: NT$480 | L47: NT$150 | M47: NT$210 | N47: NT$630 | O47: NT$90 | P47: =SUM(tblExpenses[[#This Row],[m1]:[m12]]) -> NT$4,350 | Q47: 2% | R47: =tblExpenses[[#This Row],[m1]]/tblExpenses[[#Totals],[m1]] -> 3% | S47: =tblExpenses[[#This Row],[m2]]/tblExpenses[[#Totals],[m2]] -> 10% | T47: =tblExpenses[[#This Row],[m3]]/tblExpenses[[#Totals],[m3]] -> 4% | U47: =tblExpenses[[#This Row],[m4]]/tblExpenses[[#Totals],[m4]] -> 4% | V47: =tblExpenses[[#This Row],[m5]]/tblExpenses[[#Totals],[m5]] -> 4% | W47: =tblExpenses[[#This Row],[m6]]/tblExpenses[[#Totals],[m6]] -> 7% | X47: =tblExpenses[[#This Row],[m7]]/tblExpenses[[#Totals],[m7]] -> 5% | Y47: =tblExpenses[[#This Row],[m8]]/tblExpenses[[#Totals],[m8]] -> 7% | Z47: =tblExpenses[[#This Row],[m9]]/tblExpenses[[#Totals],[m9]] -> 2% | AA47: =tblExpenses[[#This Row],[m10]]/tblExpenses[[#Totals],[m10]] -> 3% | AB47: =tblExpenses[[#This Row],[m11]]/tblExpenses[[#Totals],[m11]] -> 7% | AC47: =tblExpenses[[#This Row],[m12]]/tblExpenses[[#Totals],[m12]] -> 1% | AD47: =tblExpenses[[#This Row],[Yearly]]/tblExpenses[[#Totals],[Yearly]] -> 5%
B48: 總支出 | D48: =SUBTOTAL(109,tblExpenses[m1]) -> NT$7,080 | E48: =SUBTOTAL(109,tblExpenses[m2]) -> NT$6,150 | F48: =SUBTOTAL(109,tblExpenses[m3]) -> NT$7,470 | G48: =SUBTOTAL(109,tblExpenses[m4]) -> NT$7,830 | H48: =SUBTOTAL(109,tblExpenses[m5]) -> NT$7,710 | I48: =SUBTOTAL(109,tblExpenses[m6]) -> NT$8,220 | J48: =SUBTOTAL(109,tblExpenses[m7]) -> NT$7,980 | K48: =SUBTOTAL(109,tblExpenses[m8]) -> NT$7,050 | L48: =SUBTOTAL(109,tblExpenses[m9]) -> NT$6,900 | M48: =SUBTOTAL(109,tblExpenses[m10]) -> NT$7,770 | N48: =SUBTOTAL(109,tblExpenses[m11]) -> NT$8,880 | O48: =SUBTOTAL(109,tblExpenses[m12]) -> NT$6,930 | P48: =SUBTOTAL(109,tblExpenses[Yearly]) -> NT$89,970 | Q48: =SUBTOTAL(109,tblExpenses[Ind %]) -> 100% | R48: =SUBTOTAL(109,tblExpenses[% m1]) -> 100% | S48: =SUBTOTAL(109,tblExpenses[% m2]) -> 100% | T48: =SUBTOTAL(109,tblExpenses[% m3]) -> 100% | U48: =SUBTOTAL(109,tblExpenses[% m4]) -> 100% | V48: =SUBTOTAL(109,tblExpenses[% m5]) -> 100% | W48: =SUBTOTAL(109,tblExpenses[% m6]) -> 100% | X48: =SUBTOTAL(109,tblExpenses[% m7]) -> 100% | Y48: =SUBTOTAL(109,tblExpenses[% m8]) -> 100% | Z48: =SUBTOTAL(109,tblExpenses[% m9]) -> 100% | AA48: =SUBTOTAL(109,tblExpenses[% m10]) -> 100% | AB48: =SUBTOTAL(109,tblExpenses[% m11]) -> 100% | AC48: =SUBTOTAL(109,tblExpenses[% m12]) -> 100% | AD48: =SUBTOTAL(109,tblExpenses[% y]) -> 100%
B50: 淨獲利 | D50: =D26-tblExpenses[[#Totals],[m1]] -> NT$3,690 | E50: =E26-tblExpenses[[#Totals],[m2]] -> NT$5,250 | F50: =F26-tblExpenses[[#Totals],[m3]] -> NT$7,680 | G50: =G26-tblExpenses[[#Totals],[m4]] -> NT$3,270 | H50: =H26-tblExpenses[[#Totals],[m5]] -> NT$4,680 | I50: =I26-tblExpenses[[#Totals],[m6]] -> NT$-240 | J50: =J26-tblExpenses[[#Totals],[m7]] -> NT$960 | K50: =K26-tblExpenses[[#Totals],[m8]] -> NT$6,420 | L50: =L26-tblExpenses[[#Totals],[m9]] -> NT$3,000 | M50: =M26-tblExpenses[[#Totals],[m10]] -> NT$4,440 | N50: =N26-tblExpenses[[#Totals],[m11]] -> NT$5,370 | O50: =O26-tblExpenses[[#Totals],[m12]] -> NT$10,770 | P50: =SUM(D50:O50) -> NT$55,290 | R50: =D50/$P$50 -> 7% | S50: =E50/$P$50 -> 9% | T50: 14% | U50: 6% | V50: 8% | W50: -0% | X50: 2% | Y50: 12% | Z50: 5% | AA50: 8% | AB50: 10% | AC50: 19% | AD50: 100%
